bitfinex-derivatives/quotes_BTCF0:USTF0_20250814
["timestamp","ask_amount","ask_price","bid_price","bid_amount"]
[1755158398641,2.1410189,121840.0,121830.0,0.15308732]
[1755158398847,2.8927789,121840.0,121830.0,0.15308732]
[1755158400045,2.87354286,121840.0,121830.0,0.127424]
[1755158400240,1.95593838,121840.0,121830.0,0.127424]
[1755158400548,1.95593838,121840.0,121830.0,0.191104]
[1755158400549,0.85715343,121840.0,121830.0,0.191104]
[1755158400745,1.7647305,121840.0,121830.0,0.244884]
[1755158400951,1.78408333,121840.0,121830.0,0.270546]
[1755158401241,1.34124283,121840.0,121830.0,0.3525933]
[1755158401650,0.58952283,121840.0,121830.0,0.3525933]
[1755158401847,1.34124283,121840.0,121830.0,0.3525933]
[1755158402143,0.4428,121840.0,121830.0,0.3525933]
[1755158402348,0.003,121840.0,121830.0,0.9133933]
[1755158402947,0.003,121840.0,121830.0,0.91339176]
[1755158403341,0.003,121840.0,121830.0,0.71339176]
[1755158403543,0.002,121840.0,121830.0,0.71339176]
[1755158403746,0.01379,121850.0,121830.0,0.28276176]
[1755158404143,0.01379,121850.0,121830.0,0.26993076]
[1755158404442,0.39423989,121850.0,121830.0,0.26993076]
[1755158404643,0.01379,121840.0,121830.0,0.63173076]
[1755158404951,0.03343989,121840.0,121830.0,0.79682206]
[1755158405451,0.01379,121840.0,121830.0,0.79682206]
[1755158406145,0.37459,121850.0,121840.0,0.1296706]
[1755158406351,0.38044498,121850.0,121840.0,0.14250006]
[1755158406945,0.39423498,121850.0,121840.0,0.14250006]
[1755158407252,0.39423498,121850.0,121840.0,0.14350006]
[1755158407445,0.01964498,121850.0,121840.0,0.14350006]
[1755158407650,0.81439,121860.0,121840.0,0.66837716]
[1755158407846,0.83447074,121860.0,121850.0,0.1296637]
[1755158408050,0.4398,121860.0,121850.0,0.14249316]
[1755158408945,0.4398,121860.0,121850.0,0.14249183]
[1755158408946,0.45359,121860.0,121850.0,0.14249183]
[1755158409352,0.49272,121860.0,121850.0,0.16559183]
[1755158409649,0.54728,121860.0,121850.0,0.19743183]
[1755158409849,0.54828,121860.0,121850.0,0.19743183]
[1755158410246,0.54828,121860.0,121850.0,0.32485583]
[1755158412755,0.54828,121860.0,121850.0,0.68565583]
[1755158412954,0.53449,121860.0,121850.0,0.68565583]
[1755158413150,0.4408,121860.0,121850.0,0.68565583]
[1755158413352,0.4408,121860.0,121850.0,1.43705583]
[1755158413950,0.00712191,121870.0,121860.0,0.184597]
[1755158414157,0.05477,121880.0,121860.0,0.72227523]
[1755158414453,0.10748,121880.0,121870.0,0.5453903]
[1755158414649,0.10748,121880.0,121870.0,0.55821843]
[1755158414853,0.10748,121880.0,121870.0,0.55821599]
[1755158415257,0.53286215,121890.0,121880.0,0.1845836]
[1755158415456,0.53286215,121890.0,121880.0,0.19740929]
[1755158415657,0.17206215,121890.0,121880.0,0.55820929]
[1755158415861,0.17939934,121890.0,121880.0,0.55820929]
[1755158418357,0.26140624,121890.0,121880.0,0.55820929]
[1755158418563,0.16560934,121890.0,121880.0,0.55820929]
[1755158418763,0.17939934,121890.0,121880.0,0.55820929]
[1755158419662,0.26140624,121890.0,121880.0,0.55820929]
[1755158420363,0.26140624,121890.0,121880.0,0.68563329]
[1755158421263,0.27129624,121890.0,121880.0,0.70052329]
[1755158422460,0.63209624,121890.0,121880.0,0.14024969]
[1755158422660,0.63209624,121890.0,121880.0,0.22226329]
[1755158422862,0.63209624,121890.0,121880.0,0.24795329]
[1755158423061,1.38317624,121890.0,121880.0,0.31778329]
[1755158423562,1.38317624,121890.0,121880.0,0.3049576]
[1755158423761,1.38317624,121890.0,121880.0,0.31778337]
[1755158423965,1.38313624,121890.0,121880.0,0.31778337]
[1755158424265,1.82293624,121890.0,121880.0,0.29468337]
[1755158424460,1.82293624,121890.0,121880.0,0.24795337]
[1755158425465,1.82293624,121890.0,121880.0,0.23224337]
[1755158425664,1.82293624,121890.0,121880.0,0.22226337]
[1755158429767,0.98988934,121890.0,121880.0,0.31744337]
[1755158429967,1.82281624,121890.0,121880.0,0.34214337]
[1755158430866,1.82281624,121890.0,121880.0,0.26932337]
[1755158431071,1.46201624,121890.0,121880.0,0.34214337]
[1755158431772,1.46201624,121890.0,121880.0,0.24784337]
[1755158432373,0.69730624,121890.0,121880.0,0.26932337]
[1755158432575,1.48220001,121890.0,121880.0,0.34214337]
[1755158433077,1.46216624,121890.0,121880.0,0.22226337]
[1755158433263,1.82296624,121890.0,121880.0,0.22226337]
[1755158434373,1.84300529,121890.0,121880.0,0.22226337]
[1755158434576,1.11053155,121890.0,121880.0,0.22226337]
[1755158434774,1.86137155,121890.0,121880.0,0.22226337]
[1755158434975,2.77812149,121890.0,121880.0,0.22226337]
[1755158435477,1.56890652,121890.0,121880.0,0.22226337]
[1755158435776,2.31974652,121890.0,121880.0,0.22226337]
[1755158436469,0.0820136,121880.0,121870.0,0.1394496]
[1755158436666,0.96774857,121880.0,121870.0,0.15227672]
[1755158436871,1.73858444,121880.0,121870.0,0.15227672]
[1755158437179,1.73858444,121880.0,121870.0,0.07025712]
[1755158437872,1.73958444,121880.0,121870.0,0.07025712]
[1755158438076,0.98878444,121880.0,121870.0,0.07025712]
[1755158438375,1.73958444,121880.0,121870.0,0.15227742]
[1755158438970,0.98878444,121880.0,121870.0,0.07025712]
[1755158439178,1.73958444,121880.0,121870.0,0.07025712]
[1755158439677,1.74058444,121880.0,121870.0,0.19768112]
[1755158440175,0.98978444,121880.0,121870.0,0.19768112]
[1755158440476,1.15388844,121880.0,121870.0,0.14820112]
[1755158440672,1.90468844,121880.0,121870.0,0.14820112]
[1755158441677,1.15388844,121880.0,121870.0,0.14820112]
[1755158441878,2.56306341,121880.0,121870.0,0.11819161]
[1755158442979,1.81226341,121880.0,121870.0,0.11819161]
[1755158443180,2.56306341,121880.0,121870.0,1e-08]
[1755158445381,0.082027,121860.0,121850.0,0.08199361]
[1755158445581,2.65527491,121860.0,121840.0,0.270816]
[1755158445774,0.81917497,121850.0,121840.0,0.270816]
[1755158446078,1.59001084,121850.0,121840.0,0.270816]
[1755158447076,1.59001084,121850.0,121840.0,0.272816]
[1755158447277,1.67204464,121850.0,121840.0,0.273816]
[1755158447677,0.92124464,121850.0,121840.0,0.273816]
[1755158447978,1.67208464,121850.0,121840.0,0.273816]
[1755158448679,1.67308464,121850.0,121840.0,0.39924]
[1755158448879,1.67308464,121850.0,121840.0,0.39824]
[1755158449180,0.92324464,121850.0,121840.0,0.39824]
[1755158449382,1.65400877,121850.0,121840.0,0.39824]
[1755158449881,1.67400168,121850.0,121840.0,0.39824]
[1755158450272,1.65400877,121850.0,121840.0,0.39824]
[1755158450673,0.92179303,121850.0,121840.0,0.37354]
[1755158450980,1.69262416,121850.0,121840.0,0.39824]
[1755158451175,1.69262416,121850.0,121840.0,0.41107159]
[1755158451480,0.94178416,121850.0,121840.0,0.37354]
[1755158451780,1.69262416,121850.0,121840.0,0.37354]
[1755158452073,1.85676816,121850.0,121840.0,0.37354]
[1755158452274,1.10592816,121850.0,121840.0,0.41107218]
[1755158452475,1.85672816,121850.0,121840.0,0.41107218]
[1755158453480,1.85672816,121850.0,121840.0,0.39824]
[1755158454676,1.69258416,121850.0,121840.0,0.39824]
[1755158454870,1.85672816,121850.0,121840.0,0.37354]
[1755158455075,1.85676816,121850.0,121840.0,0.37354]
[1755158455479,1.85676816,121850.0,121840.0,0.2915009]
[1755158455781,0.94178416,121850.0,121840.0,0.2915009]
[1755158455980,1.69258416,121850.0,121840.0,0.3156309]
[1755158456475,1.69258416,121850.0,121840.0,0.2915009]
[1755158456682,1.69258416,121850.0,121840.0,0.3156309]
[1755158457978,1.69258416,121850.0,121840.0,0.2915009]
[1755158458177,2.15095913,121850.0,121840.0,0.2094644]
[1755158458684,1.69258416,121850.0,121840.0,0.2094644]
[1755158460385,1.69258416,121850.0,121840.0,0.2335944]
[1755158461483,2.15095913,121850.0,121840.0,0.2335944]
[1755158461788,1.5925404,121840.0,121830.0,0.2910902]
[1755158462088,2.89008147,121840.0,121830.0,0.22188]
[1755158462276,3.64092147,121840.0,121830.0,0.22188]
[1755158462877,0.0925471,121830.0,121820.0,0.07380542]
[1755158463089,2.15927958,121830.0,121820.0,0.07380542]
[1755158463790,2.15927958,121830.0,121820.0,0.09793542]
[1755158464889,2.15927958,121830.0,121820.0,0.22535942]
[1755158465288,2.16027958,121830.0,121820.0,0.22535942]
[1755158465489,2.16127958,121830.0,121820.0,0.22535942]
[1755158465989,1.41043958,121830.0,121820.0,0.22535942]
[1755158466190,2.16131958,121830.0,121820.0,0.22535942]
[1755158469093,1.41043958,121830.0,121820.0,0.151554]
[1755158469284,0.03992,121800.0,121790.0,0.2971204]
[1755158469485,2.54928562,121800.0,121790.0,0.32379604]
[1755158470489,2.54928562,121800.0,121790.0,0.32479604]
[1755158470690,2.54928562,121800.0,121790.0,0.32679604]
[1755158470893,1.79840562,121800.0,121790.0,0.32679604]
[1755158471086,2.55685557,121800.0,121790.0,0.32679604]
[1755158471286,1.80597557,121800.0,121790.0,0.26885204]
[1755158471693,2.55681557,121800.0,121790.0,0.26885204]
[1755158471992,2.62382295,121800.0,121790.0,0.26885204]
[1755158472193,1.87298295,121800.0,121790.0,0.26885204]
[1755158472393,2.62390295,121800.0,121790.0,0.39627604]
[1755158473495,2.62390295,121800.0,121790.0,0.39627747]
[1755158473692,2.62386295,121800.0,121790.0,0.39627747]
[1755158481490,2.62386295,121800.0,121790.0,0.38243747]
[1755158481696,2.62386295,121800.0,121790.0,0.35019747]
[1755158481897,1.87298295,121800.0,121790.0,0.22533507]
[1755158482405,2.62390295,121800.0,121790.0,0.22532871]
[1755158483197,1.87298295,121800.0,121790.0,0.22532871]
[1755158483796,2.62390295,121800.0,121790.0,0.22532871]
[1755158484095,2.62386295,121800.0,121790.0,0.14325471]
[1755158484297,1.87298295,121800.0,121790.0,0.12224332]
[1755158484501,2.62386295,121800.0,121790.0,0.12224332]
[1755158485196,3.08223792,121800.0,121790.0,0.12224332]
[1755158485396,3.08223792,121800.0,121790.0,0.13107309]
[1755158485604,3.08223792,121800.0,121790.0,0.11824238]
[1755158486213,2.62386295,121800.0,121790.0,0.09524238]
[1755158486512,2.62386295,121800.0,121790.0,0.0632028]
[1755158486709,1.87298295,121800.0,121790.0,0.0371528]
[1755158486903,3.14135458,121800.0,121790.0,0.02431473]
[1755158487512,2.68297961,121800.0,121790.0,0.02431473]
[1755158488107,3.14135458,121800.0,121790.0,0.02431473]
[1755158488614,1.93209961,121800.0,121790.0,0.0371537]
[1755158488912,2.68297961,121800.0,121790.0,0.01283897]
[1755158489101,1.87298295,121800.0,121790.0,0.10775194]
[1755158489307,2.62386295,121800.0,121790.0,0.10775194]
[1755158489609,2.62386295,121800.0,121790.0,0.02567794]
[1755158490110,3.28297493,121800.0,121790.0,0.02567794]
[1755158490314,3.28297493,121800.0,121770.0,0.3647272]
[1755158490315,0.1225007,121780.0,121770.0,0.3647272]
[1755158490506,0.1225007,121780.0,121770.0,0.4493672]
[1755158490507,2.53172177,121780.0,121770.0,0.4493672]
[1755158491413,2.53172177,121780.0,121770.0,0.4503672]
[1755158492218,2.53172177,121780.0,121770.0,0.5777912]
[1755158492617,1.78084177,121780.0,121770.0,0.5777912]
[1755158492819,2.53176177,121780.0,121770.0,0.5777912]
[1755158493016,2.53176177,121780.0,121770.0,0.331538]
[1755158493017,1.78084177,121780.0,121770.0,0.331538]
[1755158493206,2.53172177,121780.0,121770.0,0.331538]
[1755158495114,2.63802349,121780.0,121770.0,0.331538]
[1755158495723,2.63802349,121780.0,121770.0,0.249454]
[1755158495918,1.88714349,121780.0,121770.0,0.249454]
[1755158496122,2.63802349,121780.0,121770.0,0.3315411]
[1755158496822,2.64102349,121780.0,121770.0,0.3315411]
[1755158497231,2.64202349,121780.0,121770.0,0.3305411]
[1755158497428,2.64202349,121780.0,121770.0,0.248454]
[1755158497728,2.64198349,121780.0,121770.0,0.129424]
[1755158501016,3.08178349,121780.0,121770.0,0.129424]
[1755158501418,2.33094349,121780.0,121770.0,0.129424]
[1755158501623,3.08174349,121780.0,121770.0,0.129424]
[1755158502021,2.33094349,121780.0,121770.0,0.129424]
[1755158502333,3.08178349,121780.0,121770.0,0.15500871]
[1755158503326,3.08178349,121780.0,121770.0,0.14226314]
[1755158503627,3.08178349,121780.0,121770.0,0.15500937]
[1755158505421,3.08174349,121780.0,121770.0,0.14226314]
[1755158505823,2.33094349,121780.0,121770.0,0.14226314]
[1755158506022,3.08174349,121780.0,121770.0,0.14226314]
[1755158508024,1.89114349,121780.0,121770.0,0.13820314]
[1755158508319,0.18729576,121760.0,121750.0,0.0820979]
[1755158508630,2.13806186,121760.0,121750.0,0.1891484]
[1755158508831,2.13806186,121760.0,121750.0,0.2138784]
[1755158509529,1.38726186,121760.0,121750.0,0.11903]
[1755158509830,1.38726186,121760.0,121750.0,0.1316085]
[1755158509831,2.14223186,121760.0,121750.0,0.1316085]
[1755158510221,1.38826186,121760.0,121750.0,0.2137064]
[1755158510732,1.68068689,121760.0,121750.0,0.2137064]
[1755158510924,1.68072689,121760.0,121750.0,0.2137064]
[1755158511130,1.68172689,121760.0,121750.0,0.2137064]
[1755158511431,1.68172689,121760.0,121750.0,0.3411304]
[1755158511432,0.93088689,121760.0,121750.0,0.3411304]
[1755158511730,1.68172689,121760.0,121750.0,0.3411304]
[1755158512128,1.68272689,121760.0,121750.0,0.3411304]
[1755158512531,2.14427186,121760.0,121750.0,0.246454]
[1755158512932,1.39343186,121760.0,121750.0,0.246454]
[1755158513131,2.14427186,121760.0,121750.0,0.152154]
[1755158513930,2.14427186,121760.0,121750.0,0.2969518]
[1755158514124,2.14427186,121760.0,121750.0,0.3311418]
[1755158515332,1.39343186,121760.0,121750.0,0.3311418]
[1755158515631,2.14431186,121760.0,121750.0,0.3311418]
[1755158515830,2.14431186,121760.0,121750.0,0.249044]
[1755158516030,2.15195186,121760.0,121750.0,0.249044]
[1755158516236,2.15195186,121760.0,121750.0,0.3311418]
[1755158519635,1.69357689,121760.0,121750.0,0.3311418]
[1755158520035,1.69357689,121760.0,121750.0,0.249044]
[1755158520236,0.93505689,121760.0,121750.0,0.34398326]
[1755158520436,1.69365689,121760.0,121750.0,0.34398326]
[1755158520739,2.15203186,121760.0,121750.0,0.34398326]
[1755158521039,2.15199186,121760.0,121750.0,0.34398326]
[1755158521232,0.76262349,121760.0,121750.0,0.34398326]
[1755158521438,1.50311113,121760.0,121750.0,0.81493583]
[1755158521839,1.50327113,121760.0,121750.0,0.81493583]
[1755158522136,1.50327113,121760.0,121750.0,0.80209447]
[1755158522341,0.74459113,121760.0,121750.0,0.80209447]
[1755158522538,0.7246,121760.0,121750.0,0.80209447]
[1755158522739,1.4832,121760.0,121750.0,0.80209447]
[1755158522935,0.7246,121760.0,121750.0,0.80209447]
[1755158523129,1.48308,121760.0,121750.0,0.80209447]
[1755158523330,1.18297497,121760.0,121750.0,0.80209447]
[1755158523541,1.94137497,121760.0,121750.0,0.80209447]
[1755158523741,1.94137497,121760.0,121750.0,0.3437195]
[1755158523934,1.94137497,121760.0,121750.0,0.80209447]
[1755158524340,1.18297497,121760.0,121750.0,0.3437195]
[1755158524540,1.26506607,121760.0,121750.0,0.3437195]
[1755158524740,2.02334607,121760.0,121750.0,0.3437195]
[1755158524937,2.02334607,121760.0,121750.0,0.2950795]
[1755158525136,2.02342607,121760.0,121750.0,0.3437195]
[1755158525330,1.48296,121760.0,121750.0,0.3437195]
[1755158525535,0.7246,121760.0,121750.0,0.80209447]
[1755158525839,1.48292,121760.0,121750.0,0.80209447]
[1755158526046,0.7246,121760.0,121750.0,0.80209447]
[1755158526342,0.8066911,121760.0,121750.0,0.80209447]
[1755158526532,1.5650511,121760.0,121750.0,0.80209447]
[1755158526848,1.94133497,121760.0,121750.0,0.80209447]
[1755158527045,1.48296,121760.0,121750.0,0.80209447]
[1755158527237,1.94133497,121760.0,121750.0,0.80209447]
[1755158527439,1.94133497,121760.0,121750.0,0.3437195]
[1755158527644,1.94133497,121760.0,121750.0,0.81493424]
[1755158528439,0.3608,121780.0,121770.0,0.00912]
[1755158528638,0.3608,121780.0,121770.0,1.47678434]
[1755158528639,0.0204637,121780.0,121770.0,1.47678434]
[1755158528843,0.09254647,121800.0,121790.0,0.0911909]
[1755158529036,0.00756995,121800.0,121790.0,0.65759587]
[1755158529236,0.90323237,121810.0,121800.0,0.1992142]
[1755158529544,0.98520796,121810.0,121800.0,0.1992142]
[1755158529844,1.76669796,121810.0,121800.0,0.1932142]
[1755158530043,1.00801796,121810.0,121800.0,0.1932142]
[1755158530345,1.77812556,121810.0,121800.0,0.3206382]
[1755158531141,1.01956556,121810.0,121800.0,0.3206382]
[1755158531342,1.48294053,121810.0,121800.0,0.2220328]
[1755158531645,2.24146053,121810.0,121800.0,0.2324881]
[1755158532246,2.24146053,121810.0,121800.0,0.2666781]
[1755158532550,1.78308556,121810.0,121800.0,0.3266381]
[1755158533548,2.24146053,121810.0,121800.0,0.2094881]
[1755158533752,2.24146053,121810.0,121800.0,0.2666781]
[1755158534056,2.24146053,121810.0,121800.0,0.3114981]
[1755158534351,1.78308556,121810.0,121800.0,0.3266381]
[1755158535852,2.24146053,121810.0,121800.0,0.2628581]
[1755158537052,1.02456556,121810.0,121800.0,0.3266381]
[1755158537242,1.78212556,121810.0,121800.0,0.3266381]
[1755158537446,1.78212556,121810.0,121800.0,0.244574]
[1755158537749,1.48294053,121810.0,121800.0,0.127424]
[1755158537953,2.24038053,121810.0,121800.0,0.127424]
[1755158540149,0.1205109,121790.0,121780.0,0.3633732]
[1755158540456,1.33600587,121790.0,121780.0,0.2812976]
[1755158540955,0.57888587,121790.0,121780.0,0.2812976]
[1755158541150,1.33592587,121790.0,121780.0,0.2812976]
[1755158541350,0.57888587,121790.0,121780.0,0.2812976]
[1755158541551,0.55707587,121790.0,121780.0,0.2812976]
[1755158541749,1.31495587,121790.0,121780.0,0.2812976]
[1755158542156,0.55807587,121790.0,121780.0,0.2812976]
[1755158542356,0.58088587,121790.0,121780.0,0.2812976]
[1755158542653,1.33764587,121790.0,121780.0,0.2812976]
[1755158543249,0.8792709,121790.0,121780.0,0.4087216]
[1755158543449,1.33764587,121790.0,121780.0,0.4087216]
[1755158543650,1.33748587,121790.0,121780.0,0.4087216]
[1755158543951,1.33748587,121790.0,121780.0,0.2915716]
[1755158544158,1.33748587,121790.0,121780.0,0.3144916]
[1755158544655,1.33748587,121790.0,121780.0,0.3479916]
[1755158544851,2.15678084,121790.0,121780.0,0.2095016]
[1755158545059,1.69840587,121790.0,121780.0,0.2095016]
[1755158545255,1.69848587,121790.0,121780.0,0.2095016]
[1755158546558,1.69848587,121790.0,121780.0,0.127424]
[1755158546858,1.7185189,121790.0,121780.0,0.127424]
[1755158547156,0.9619189,121790.0,121780.0,0.2095016]
[1755158547356,1.7185189,121790.0,121780.0,0.2324216]
[1755158547550,0.9619189,121790.0,121780.0,0.2324216]
[1755158547755,1.7185189,121790.0,121780.0,0.150344]
[1755158548557,1.7184789,121790.0,121780.0,0.150344]
[1755158548859,1.7186789,121790.0,121780.0,0.150344]
[1755158549456,1.7186789,121790.0,121780.0,0.127424]
[1755158549856,2.17705387,121790.0,121780.0,0.127424]
[1755158550057,2.17729387,121790.0,121780.0,0.103794]
[1755158550253,2.17729387,121790.0,121780.0,0.01678886]
[1755158550557,0.0820843,121770.0,121760.0,0.2696656]
[1755158550755,1.1998443,121770.0,121760.0,0.2843156]
[1755158550951,1.35963424,121770.0,121760.0,0.29715546]
[1755158551158,2.13680863,121770.0,121760.0,0.29715546]
[1755158552056,2.13680863,121770.0,121760.0,0.21606766]
[1755158552256,2.13680863,121770.0,121760.0,0.16791766]
[1755158552456,2.13680863,121770.0,121760.0,0.18022298]
[1755158552658,2.13680863,121770.0,121760.0,0.21372298]
[1755158552854,1.39818395,121770.0,121760.0,0.04906518]
[1755158553056,2.15506395,121770.0,121760.0,0.04906518]
[1755158553360,2.15506395,121770.0,121760.0,0.0490638]
[1755158553566,2.15506395,121770.0,121760.0,0.17648779]
[1755158553962,1.37988863,121770.0,121760.0,0.17648779]
[1755158554262,1.74068863,121770.0,121760.0,0.14126385]
[1755158554461,2.49852863,121770.0,121760.0,0.14126385]
[1755158554655,2.49852863,121770.0,121760.0,0.14026385]
[1755158554862,2.49836863,121770.0,121760.0,0.14026385]
[1755158555157,1.74068863,121770.0,121760.0,0.14026385]
[1755158555355,2.49836863,121770.0,121760.0,0.16318385]
[1755158556666,2.49835325,121770.0,121760.0,0.16318385]
[1755158558268,2.49835325,121770.0,121760.0,0.15034399]
[1755158560568,1.74067325,121770.0,121760.0,0.15034399]
[1755158560864,1.74067325,121770.0,121760.0,0.20951509]
[1755158561069,1.74067325,121770.0,121760.0,0.32965509]
[1755158561070,2.49827325,121770.0,121760.0,0.32965509]
[1755158561863,2.49827325,121770.0,121760.0,0.24756399]
[1755158562059,2.49827325,121770.0,121760.0,0.32965509]
[1755158562759,1.74067325,121770.0,121760.0,0.32965509]
[1755158562965,2.50019325,121770.0,121760.0,0.32965509]
[1755158563467,2.50007325,121770.0,121760.0,0.32965509]
[1755158564168,1.28229828,121770.0,121760.0,0.28150509]
[1755158564373,1.28229828,121770.0,121760.0,0.32965509]
[1755158564569,2.04153828,121770.0,121760.0,0.32965509]
[1755158564770,2.49991325,121770.0,121760.0,0.34249593]
[1755158566874,0.82392331,121770.0,121760.0,0.34249593]
[1755158567066,2.49955325,121770.0,121760.0,0.34249593]
[1755158568372,1.74067325,121770.0,121760.0,0.14026483]
[1755158568572,2.49955325,121770.0,121760.0,0.14026483]
[1755158569268,2.49955325,121770.0,121760.0,0.16318483]
[1755158569472,2.49955325,121770.0,121760.0,0.24527593]
[1755158569978,2.49955325,121770.0,121760.0,0.16318483]
[1755158570273,2.49943325,121770.0,121760.0,0.16318483]
[1755158571274,2.49943325,121770.0,121760.0,0.14026483]
[1755158573072,2.49943325,121770.0,121760.0,0.14026496]
[1755158577081,2.49943325,121770.0,121760.0,0.16482496]
[1755158578180,2.49839325,121770.0,121760.0,0.34230606]
[1755158578574,1.74067325,121770.0,121760.0,0.26021496]
[1755158578879,2.49831325,121770.0,121760.0,0.26021496]
[1755158579683,1.74067325,121770.0,121760.0,0.26021496]
[1755158579882,2.49815325,121770.0,121760.0,0.26021496]
[1755158580078,2.49815325,121770.0,121760.0,0.14026496]
[1755158580382,2.49815325,121770.0,121760.0,0.16482496]
[1755158581087,1.74067325,121770.0,121760.0,0.26021496]
[1755158581381,1.74067325,121770.0,121760.0,0.22135496]
[1755158581573,1.74067325,121770.0,121760.0,0.27256324]
[1755158581779,2.49811325,121770.0,121760.0,0.27256324]
[1755158583685,1.74067325,121770.0,121760.0,0.27256324]
[1755158583978,2.49803325,121770.0,121760.0,0.22500324]
[1755158584986,2.49787325,121770.0,121760.0,0.22500324]
[1755158585188,2.49787325,121770.0,121760.0,0.19238324]
[1755158585485,1.74067325,121770.0,121760.0,0.17717324]
[1755158585674,2.49787325,121770.0,121760.0,0.17717324]
[1755158586078,2.49787325,121770.0,121760.0,0.15261324]
[1755158586986,2.49787325,121770.0,121760.0,0.14026496]
[1755158587487,2.49787325,121770.0,121760.0,0.06731355]
[1755158587683,2.95624822,121770.0,121760.0,0.06731355]
[1755158587887,2.49787325,121770.0,121760.0,0.06731355]
[1755158589678,0.0820978,121750.0,121740.0,0.2120329]
[1755158589883,1.31815178,121750.0,121740.0,0.29650408]
[1755158590083,0.85977681,121750.0,121740.0,0.29650408]
[1755158590291,1.31815178,121750.0,121740.0,0.29650408]
[1755158590589,0.85977681,121750.0,121740.0,0.29650408]
[1755158590883,1.31815178,121750.0,121740.0,0.29850408]
[1755158591579,0.56071178,121750.0,121740.0,0.29850408]
[1755158591784,1.31807178,121750.0,121740.0,0.29850408]
[1755158592278,0.56071178,121750.0,121740.0,0.29850408]
[1755158592483,1.31807178,121750.0,121740.0,0.29950408]
[1755158592883,1.31803178,121750.0,121740.0,0.29950408]
[1755158594886,1.31803178,121750.0,121740.0,0.21740108]
[1755158595388,1.67883178,121750.0,121740.0,0.21740108]
[1755158595586,1.67871178,121750.0,121740.0,0.21740108]
[1755158596887,0.92151178,121750.0,121740.0,0.21740108]
[1755158597193,1.67859178,121750.0,121740.0,0.21739495]
[1755158597492,1.67851178,121750.0,121740.0,0.21739495]
[1755158599297,1.67851178,121750.0,121740.0,0.13529505]
[1755158599591,1.67851178,121750.0,121740.0,0.21739965]
[1755158600588,2.13688675,121750.0,121740.0,0.08773505]
[1755158601088,2.13688675,121750.0,121740.0,0.16983965]
[1755158601694,2.13688675,121750.0,121740.0,0.18268142]
[1755158602297,2.13688675,121750.0,121740.0,0.05274682]
[1755158603089,2.13688675,121750.0,121740.0,0.05312658]
[1755158606495,2.13688675,121750.0,121740.0,0.05312583]
[1755158606994,2.13688675,121750.0,121740.0,0.04040179]
[1755158608593,2.13688675,121750.0,121740.0,0.01584179]
[1755158609088,1.37988675,121750.0,121740.0,0.02856595]
[1755158609396,2.13600675,121750.0,121740.0,0.01584208]
[1755158609597,2.13600675,121750.0,121740.0,0.03992208]
[1755158609789,2.13576675,121750.0,121740.0,0.01584208]
[1755158610096,2.13568675,121750.0,121740.0,0.03992208]
[1755158610588,2.13568675,121750.0,121740.0,0.03582721]
[1755158610790,0.0983146,121740.0,121730.0,0.001]
[1755158610989,1.48377773,121740.0,121730.0,0.01372432]
[1755158611294,1.48377773,121740.0,121730.0,0.001]
[1755158611892,1.48377773,121740.0,121730.0,0.003]
[1755158612097,2.23981773,121740.0,121730.0,0.003]
[1755158612798,2.23981773,121740.0,121730.0,0.005]
[1755158613287,2.23981773,121740.0,121730.0,0.001]
[1755158615585,0.1214113,121730.0,121720.0,0.02408]
[1755158615785,1.72453597,121730.0,121720.0,0.02408]
[1755158615994,0.0983281,121720.0,121710.0,0.3670668]
[1755158616292,1.33571307,121720.0,121710.0,0.37978356]
[1755158617385,0.57979307,121720.0,121710.0,0.29766036]
[1755158617585,1.33551307,121720.0,121710.0,0.29766036]
[1755158618195,1.33551307,121720.0,121710.0,0.21553756]
[1755158618692,1.33551307,121720.0,121710.0,0.21653756]
[1755158619495,1.33551307,121720.0,121710.0,0.21853756]
[1755158621196,0.8771381,121720.0,121710.0,0.21853756]
[1755158621393,1.33551307,121720.0,121710.0,0.21853756]
[1755158622693,1.33551307,121720.0,121710.0,0.23138192]
[1755158622887,0.89737729,121720.0,121710.0,0.23138192]
[1755158623089,0.60003226,121720.0,121710.0,0.23138192]
[1755158623292,1.35527226,121720.0,121710.0,0.23038192]
[1755158623692,0.60003226,121720.0,121710.0,0.22838192]
[1755158623901,1.35519226,121720.0,121710.0,0.22837261]
[1755158624094,0.89681729,121720.0,121710.0,0.22837261]
[1755158624397,1.35519226,121720.0,121710.0,0.22837261]
[1755158624798,0.89681729,121720.0,121710.0,0.22837261]
[1755158624999,1.35519226,121720.0,121710.0,0.22837261]
[1755158626804,1.35519226,121720.0,121710.0,0.21566498]
[1755158627104,1.35515226,121720.0,121710.0,0.22837223]
[1755158627294,1.35515226,121720.0,121710.0,0.18190223]
[1755158627797,1.35515226,121720.0,121710.0,0.21449223]
[1755158628197,1.71595226,121720.0,121710.0,0.22837223]
[1755158629200,2.17432723,121720.0,121710.0,0.22837223]
[1755158629400,1.71595226,121720.0,121710.0,0.22837223]
[1755158629702,1.71595226,121720.0,121710.0,0.21566498]
[1755158629901,1.71595226,121720.0,121710.0,0.22792333]
[1755158630204,2.17432723,121720.0,121710.0,0.10922333]
[1755158630405,1.25757729,121720.0,121710.0,0.13330333]
[1755158630595,1.71595226,121720.0,121710.0,0.13330333]
[1755158630900,1.71595226,121720.0,121710.0,0.17574333]
[1755158631800,2.17432723,121720.0,121710.0,0.17574333]
[1755158632199,2.15408804,121720.0,121710.0,0.09362253]
[1755158632405,2.15408804,121720.0,121710.0,0.01484418]
[1755158632605,2.17432659,121720.0,121710.0,0.01484418]
[1755158633005,2.17404659,121720.0,121710.0,0.01484418]
[1755158633208,1.25729665,121720.0,121710.0,0.01484418]
[1755158633409,2.17404659,121720.0,121710.0,0.01484418]
[1755158634808,2.17404659,121720.0,121710.0,0.002]
[1755158635403,2.17444978,121720.0,121710.0,0.002]
[1755158636701,1.41920978,121720.0,121710.0,0.002]
[1755158636908,1.41920978,121720.0,121710.0,0.01426571]
[1755158637103,2.17524978,121720.0,121710.0,0.01426571]
[1755158637503,2.17624978,121720.0,121710.0,0.01426571]
[1755158637811,1.42120978,121720.0,121710.0,0.01426571]
[1755158638008,1.42120978,121720.0,121710.0,0.03857571]
[1755158638206,1.26037984,121720.0,121710.0,0.16830051]
[1755158638405,1.71875481,121720.0,121710.0,0.21495051]
[1755158638608,1.71875481,121720.0,121710.0,0.13282571]
[1755158639112,2.17712978,121720.0,121710.0,0.13282571]
[1755158639419,2.17816978,121720.0,121710.0,0.01426571]
[1755158639705,2.17816978,121720.0,121710.0,0.002]
[1755158642009,2.17812978,121720.0,121710.0,0.002]
[1755158642315,0.50445984,121720.0,121710.0,0.002]
[1755158642510,2.17796978,121720.0,121710.0,0.002]
[1755158642907,2.17796978,121720.0,121710.0,0.02631]
[1755158643310,1.39811978,121720.0,121710.0,0.07391]
[1755158643515,2.17796978,121720.0,121710.0,0.13283725]
[1755158645116,2.17800978,121720.0,121710.0,0.13283725]
[1755158645614,0.50445984,121720.0,121710.0,0.21496205]
[1755158645814,2.17776978,121720.0,121710.0,0.21496205]
[1755158646015,1.42120978,121720.0,121710.0,0.21496205]